[Event "Titled Tuesday Blitz February 22 Late 2022"]
[White "Lopez Del Alamo, Antonio"]
[Black "Liang, Jason"]
[WhiteFideId "2227339"]
[BlackFideId "30940303"]
[WhiteElo "2082"]
[BlackElo "1976"]
[Result "0-1"]
[Round "07"]
[TimeControl "180+1"]
[Date "2022.02.23"]
[WhiteClock "0:00:03"]
[BlackClock "0:00:06"]

1. e4 {[%clk 0:02:47]}  c6 {[%clk 0:02:51]} 2. d3 {[%clk 0:02:45]}  d5 {[%clk 0:02:51]} 3. Nd2 {[%clk 0:02:46]}  e5 {[%clk 0:02:49]} 4. Ngf3 {[%clk 0:02:44]}  Bd6 {[%clk 0:02:50]} 5. g3 {[%clk 0:02:44]}  Nf6 {[%clk 0:02:50]} 6. Bg2 {[%clk 0:02:44]}  O-O {[%clk 0:02:50]} 7. O-O {[%clk 0:02:45]}  Re8 {[%clk 0:02:51]} 8. Re1 {[%clk 0:02:44]}  a5 {[%clk 0:02:43]} 9. a4 {[%clk 0:02:43]}  Nbd7 {[%clk 0:02:36]} 10. b3 {[%clk 0:02:35]}  Nf8 {[%clk 0:02:31]} 11. Bb2 {[%clk 0:02:33]}  Ng6 {[%clk 0:02:32]} 12. c3 {[%clk 0:01:46]}  Qb6 {[%clk 0:02:18]} 13. Qc2 {[%clk 0:01:42]}  Bc5 {[%clk 0:02:11]} 14. Re2 {[%clk 0:01:34]}  Be6 {[%clk 0:02:08]} 15. Rf1 {[%clk 0:01:26]}  Rad8 {[%clk 0:02:07]} 16. h3 {[%clk 0:01:19]}  dxe4 {[%clk 0:02:05]} 17. dxe4 {[%clk 0:01:20]}  Qa6 {[%clk 0:02:04]} 18. Rfe1 {[%clk 0:01:17]}  b5 {[%clk 0:01:48]} 19. Bf1 {[%clk 0:01:12]}  bxa4 {[%clk 0:01:47]} 20. bxa4 {[%clk 0:01:13]}  Rb8 {[%clk 0:01:36]} 21. Rb1 {[%clk 0:01:07]}  Qa7 {[%clk 0:01:28]} 22. Kg2 {[%clk 0:01:04]}  h6 {[%clk 0:01:08]} 23. Ra1 {[%clk 0:01:03]}  Qe7 {[%clk 0:01:01]} 24. Ree1 {[%clk 0:00:59]}  Red8 {[%clk 0:01:01]} 25. Nc4 {[%clk 0:00:59]}  Qc7 {[%clk 0:00:53]} 26. Ba3 {[%clk 0:00:52]}  Nd7 {[%clk 0:00:46]} 27. Nfd2 {[%clk 0:00:42]}  Bxa3 {[%clk 0:00:40]} 28. Nxa3 {[%clk 0:00:42]}  Nc5 {[%clk 0:00:40]} 29. Bc4 {[%clk 0:00:41]}  Bc8 {[%clk 0:00:35]} 30. Rab1 {[%clk 0:00:35]}  Ra8 {[%clk 0:00:31]} 31. h4 {[%clk 0:00:33]}  Qd7 {[%clk 0:00:31]} 32. Nf3 {[%clk 0:00:31]}  Qh3+ {[%clk 0:00:30]} 33. Kg1 {[%clk 0:00:32]}  Qg4 {[%clk 0:00:23]} 34. Nh2 {[%clk 0:00:29]}  Qh3 {[%clk 0:00:20]} 35. Bf1 {[%clk 0:00:29]}  Qe6 {[%clk 0:00:19]} 36. Nc4 {[%clk 0:00:29]}  Ba6 {[%clk 0:00:15]} 37. Nb6 {[%clk 0:00:25]}  Ra7 {[%clk 0:00:14]} 38. Bxa6 {[%clk 0:00:23]}  Rxa6 {[%clk 0:00:15]} 39. Qe2 {[%clk 0:00:20]}  Nf8 {[%clk 0:00:02]} 40. Nf1 {[%clk 0:00:19]}  Qe7 {[%clk 0:00:02]} 41. Ne3 {[%clk 0:00:17]}  g6 {[%clk 0:00:02]} 42. Nec4 {[%clk 0:00:16]}  Kg7 {[%clk 0:00:01]} 43. Qe3 {[%clk 0:00:14]}  f6 {[%clk 0:00:01]} 44. Rbd1 {[%clk 0:00:14]}  Nfe6 {[%clk 0:00:01]} 45. Rxd8 {[%clk 0:00:13]}  Qxd8 {[%clk 0:00:02]} 46. Qe2 {[%clk 0:00:12]}  Ra7 {[%clk 0:00:02]} 47. Rd1 {[%clk 0:00:13]}  Qe7 {[%clk 0:00:03]} 48. Rd6 {[%clk 0:00:12]}  Rc7 {[%clk 0:00:02]} 49. f3 {[%clk 0:00:10]}  h5 {[%clk 0:00:02]} 50. Kg2 {[%clk 0:00:11]}  Nb7 {[%clk 0:00:03]} 51. Rd2 {[%clk 0:00:10]}  Nec5 {[%clk 0:00:03]} 52. Qe3 {[%clk 0:00:10]}  Nb3 {[%clk 0:00:02]} 53. Rb2 {[%clk 0:00:09]}  N3c5 {[%clk 0:00:02]} 54. Rd2 {[%clk 0:00:07]}  Qe6 {[%clk 0:00:02]} 55. Nxa5 {[%clk 0:00:05]}  Nxa5 {[%clk 0:00:02]} 56. Qxc5 {[%clk 0:00:06]}  Nb3 {[%clk 0:00:02]} 57. Qc4 {[%clk 0:00:05]}  Qxc4 {[%clk 0:00:01]} 58. Nxc4 {[%clk 0:00:06]}  Nxd2 {[%clk 0:00:02]} 59. Nxd2 {[%clk 0:00:06]}  Ra7 {[%clk 0:00:03]} 60. Nc4 {[%clk 0:00:04]}  Rxa4 {[%clk 0:00:04]} 61. Nd6 {[%clk 0:00:03]}  Ra2+ {[%clk 0:00:05]} 62. Kh3 {[%clk 0:00:03]}  Kf8 {[%clk 0:00:06]} 63. Nb7 {[%clk 0:00:02]}  Ke7 {[%clk 0:00:06]} 64. Na5 {[%clk 0:00:03]}  Rxa5 {[%clk 0:00:06]} 0-1


[Site "https://www.chess.com"]

[Event "Titled Tuesday Blitz February 22 Late 2022"]
[White "Martirosyan, Haik M."]
[Black "Abdrlauf, Elham"]
[WhiteFideId "13306553"]
[BlackFideId "1533533"]
[WhiteElo "2735"]
[BlackElo "2334"]
[Result "1-0"]
[Round "07"]
[TimeControl "180+1"]
[Date "2022.02.22"]
[WhiteClock "0:01:35"]
[BlackClock "0:00:03"]

1. e4 {[%clk 0:03:00]}  c6 {[%clk 0:02:59]} 2. Nf3 {[%clk 0:03:00]}  d5 {[%clk 0:02:59]} 3. Nc3 {[%clk 0:03:01]}  dxe4 {[%clk 0:03:00]} 4. Nxe4 {[%clk 0:03:02]}  Nf6 {[%clk 0:03:01]} 5. Qe2 {[%clk 0:03:03]}  Nxe4 {[%clk 0:03:01]} 6. Qxe4 {[%clk 0:03:04]}  Nd7 {[%clk 0:03:02]} 7. Bc4 {[%clk 0:03:02]}  Nf6 {[%clk 0:03:02]} 8. Ne5 {[%clk 0:03:03]}  e6 {[%clk 0:03:03]} 9. Qe2 {[%clk 0:03:03]}  b5 {[%clk 0:03:04]} 10. Bd3 {[%clk 0:03:00]}  Qc7 {[%clk 0:02:58]} 11. Nxc6 {[%clk 0:02:58]}  a6 {[%clk 0:02:39]} 12. Ne5 {[%clk 0:02:56]}  Bd6 {[%clk 0:02:35]} 13. Nf3 {[%clk 0:02:55]}  Bb7 {[%clk 0:02:34]} 14. c3 {[%clk 0:02:52]}  O-O {[%clk 0:02:33]} 15. Bc2 {[%clk 0:02:52]}  e5 {[%clk 0:02:15]} 16. d3 {[%clk 0:02:51]}  e4 {[%clk 0:02:16]} 17. dxe4 {[%clk 0:02:51]}  Nxe4 {[%clk 0:02:17]} 18. O-O {[%clk 0:02:46]}  Rfe8 {[%clk 0:02:17]} 19. Be3 {[%clk 0:02:46]}  Nf6 {[%clk 0:01:49]} 20. Rfd1 {[%clk 0:02:39]}  Bxf3 {[%clk 0:01:38]} 21. Qxf3 {[%clk 0:02:38]}  Bxh2+ {[%clk 0:01:38]} 22. Kf1 {[%clk 0:02:33]}  Be5 {[%clk 0:01:37]} 23. Bb3 {[%clk 0:02:25]}  Rad8 {[%clk 0:01:29]} 24. g3 {[%clk 0:02:25]}  a5 {[%clk 0:01:12]} 25. a3 {[%clk 0:02:23]}  Rxd1+ {[%clk 0:00:43]} 26. Rxd1 {[%clk 0:02:22]}  b4 {[%clk 0:00:42]} 27. cxb4 {[%clk 0:02:17]}  axb4 {[%clk 0:00:43]} 28. axb4 {[%clk 0:02:17]}  Bxb2 {[%clk 0:00:39]} 29. b5 {[%clk 0:02:17]}  Qc3 {[%clk 0:00:32]} 30. Ba2 {[%clk 0:02:10]}  Qa3 {[%clk 0:00:17]} 31. Bb1 {[%clk 0:02:01]}  Qb4 {[%clk 0:00:13]} 32. b6 {[%clk 0:02:01]}  Ng4 {[%clk 0:00:12]} 33. Bd2 {[%clk 0:01:45]}  Qb5+ {[%clk 0:00:03]} 34. Kg2 {[%clk 0:01:43]}  Ne5 {[%clk 0:00:04]} 35. Qe4 {[%clk 0:01:40]}  Qxb6 {[%clk 0:00:03]} 36. Qxh7+ {[%clk 0:01:36]}  Kf8 {[%clk 0:00:04]} 37. Qh8+ {[%clk 0:01:35]}  Ke7 {[%clk 0:00:04]} 38. Bg5+ {[%clk 0:01:36]}  Ke6 {[%clk 0:00:03]} 39. Qxe8# {[%clk 0:01:35]} 1-0


[Site "https://www.chess.com"]

[Event "Titled Tuesday Blitz February 22 Late 2022"]
[White "Mekhitarian, Krikor Sevag"]
[Black "Van Foreest, Jorden"]
[WhiteFideId "2107660"]
[BlackFideId "1039784"]
[WhiteElo "2598"]
[BlackElo "2609"]
[Result "0-1"]
[Round "07"]
[TimeControl "180+1"]
[Date "2022.02.22"]
[WhiteClock "0:00:01"]
[BlackClock "0:00:15"]

1. e4 {[%clk 0:03:00]}  c6 {[%clk 0:03:00]} 2. Nf3 {[%clk 0:02:59]}  d5 {[%clk 0:02:59]} 3. Nc3 {[%clk 0:03:00]}  Bg4 {[%clk 0:02:59]} 4. h3 {[%clk 0:03:00]}  Bxf3 {[%clk 0:02:59]} 5. Qxf3 {[%clk 0:03:01]}  e6 {[%clk 0:02:59]} 6. g3 {[%clk 0:03:01]}  Nd7 {[%clk 0:02:59]} 7. Bg2 {[%clk 0:03:01]}  Ngf6 {[%clk 0:03:00]} 8. O-O {[%clk 0:03:00]}  Bc5 {[%clk 0:03:00]} 9. d3 {[%clk 0:02:59]}  O-O {[%clk 0:03:00]} 10. Qe2 {[%clk 0:02:59]}  b5 {[%clk 0:03:00]} 11. Kh2 {[%clk 0:02:58]}  a5 {[%clk 0:03:01]} 12. Bd2 {[%clk 0:02:56]}  a4 {[%clk 0:03:00]} 13. a3 {[%clk 0:02:47]}  dxe4 {[%clk 0:02:57]} 14. Nxe4 {[%clk 0:02:36]}  Nxe4 {[%clk 0:02:57]} 15. Bxe4 {[%clk 0:02:15]}  Rc8 {[%clk 0:02:53]} 16. c3 {[%clk 0:02:14]}  Nf6 {[%clk 0:02:50]} 17. Bf3 {[%clk 0:02:11]}  Be7 {[%clk 0:02:36]} 18. d4 {[%clk 0:02:09]}  Qd7 {[%clk 0:02:31]} 19. Rad1 {[%clk 0:02:06]}  Rfd8 {[%clk 0:02:28]} 20. Rfe1 {[%clk 0:02:03]}  h6 {[%clk 0:02:15]} 21. Kg2 {[%clk 0:01:57]}  Rb8 {[%clk 0:02:11]} 22. Bf4 {[%clk 0:01:55]}  Bd6 {[%clk 0:02:12]} 23. Bc1 {[%clk 0:01:51]}  Nd5 {[%clk 0:02:09]} 24. c4 {[%clk 0:01:44]}  bxc4 {[%clk 0:02:05]} 25. Qxc4 {[%clk 0:01:43]}  Ra8 {[%clk 0:02:05]} 26. Re2 {[%clk 0:01:38]}  Rdb8 {[%clk 0:02:05]} 27. Rc2 {[%clk 0:01:38]}  Rb6 {[%clk 0:02:04]} 28. h4 {[%clk 0:01:34]}  Qb7 {[%clk 0:01:53]} 29. Qe2 {[%clk 0:01:26]}  Rb3 {[%clk 0:01:50]} 30. Be4 {[%clk 0:01:21]}  Qd7 {[%clk 0:01:37]} 31. Rc4 {[%clk 0:01:14]}  Rb6 {[%clk 0:01:22]} 32. Bc2 {[%clk 0:01:11]}  Rba6 {[%clk 0:01:18]} 33. Qd3 {[%clk 0:01:04]}  Nf6 {[%clk 0:01:17]} 34. Qf3 {[%clk 0:00:52]}  Be7 {[%clk 0:01:16]} 35. Rc3 {[%clk 0:00:40]}  Qd5 {[%clk 0:01:13]} 36. Kg1 {[%clk 0:00:29]}  Rd8 {[%clk 0:01:06]} 37. Qe2 {[%clk 0:00:28]}  Ra7 {[%clk 0:00:59]} 38. Rc4 {[%clk 0:00:27]}  Qb5 {[%clk 0:00:59]} 39. Kf1 {[%clk 0:00:26]}  Qd5 {[%clk 0:00:58]} 40. Kg1 {[%clk 0:00:26]}  Qb5 {[%clk 0:00:58]} 41. Kf1 {[%clk 0:00:26]}  Rda8 {[%clk 0:00:59]} 42. Rc3 {[%clk 0:00:23]}  Qb7 {[%clk 0:00:59]} 43. Kg1 {[%clk 0:00:23]}  Bd8 {[%clk 0:00:57]} 44. Rf3 {[%clk 0:00:22]}  Ra5 {[%clk 0:00:53]} 45. Qd3 {[%clk 0:00:19]}  Kf8 {[%clk 0:00:50]} 46. Bd2 {[%clk 0:00:19]}  Rb5 {[%clk 0:00:50]} 47. Bc1 {[%clk 0:00:13]}  Be7 {[%clk 0:00:48]} 48. Re3 {[%clk 0:00:13]}  Rd5 {[%clk 0:00:46]} 49. Qc4 {[%clk 0:00:13]}  Qb5 {[%clk 0:00:44]} 50. Rc3 {[%clk 0:00:10]}  Rd6 {[%clk 0:00:37]} 51. Qf1 {[%clk 0:00:08]}  Qd5 {[%clk 0:00:35]} 52. Qg2 {[%clk 0:00:08]}  Bd8 {[%clk 0:00:34]} 53. Bf4 {[%clk 0:00:06]}  Rd7 {[%clk 0:00:29]} 54. Rxc6 {[%clk 0:00:06]}  Qxg2+ {[%clk 0:00:24]} 55. Kxg2 {[%clk 0:00:07]}  Nd5 {[%clk 0:00:25]} 56. Bc1 {[%clk 0:00:07]}  Bb6 {[%clk 0:00:25]} 57. Rc4 {[%clk 0:00:06]}  Rda7 {[%clk 0:00:24]} 58. Be4 {[%clk 0:00:06]}  Rd8 {[%clk 0:00:23]} 59. Bc2 {[%clk 0:00:06]}  Rda8 {[%clk 0:00:23]} 60. Kf1 {[%clk 0:00:07]}  Ke7 {[%clk 0:00:23]} 61. Bd2 {[%clk 0:00:07]}  Kd7 {[%clk 0:00:21]} 62. h5 {[%clk 0:00:07]}  Bc7 {[%clk 0:00:21]} 63. Be4 {[%clk 0:00:07]}  Ra5 {[%clk 0:00:21]} 64. Bxa5 {[%clk 0:00:06]}  Rxa5 {[%clk 0:00:22]} 65. Bxd5 {[%clk 0:00:06]}  Rxd5 {[%clk 0:00:17]} 66. Rxa4 {[%clk 0:00:06]}  Rxh5 {[%clk 0:00:17]} 67. Ra7 {[%clk 0:00:05]}  Kd6 {[%clk 0:00:15]} 68. Rc1 {[%clk 0:00:06]}  Rh1+ {[%clk 0:00:14]} 69. Kg2 {[%clk 0:00:01]}  Rxc1 {[%clk 0:00:15]} 70. Ra6+ {[%clk 0:00:02]}  Rc6 {[%clk 0:00:14]} 71. Ra7 {[%clk 0:00:01]}  Rc2 {[%clk 0:00:15]} 0-1


[Site "https://www.chess.com"]

[Event "Titled Tuesday Blitz February 22 Late 2022"]
[White "Mikheev, Stanislav"]
[Black "Zeynalli, Rashad"]
[WhiteFideId "4135920"]
[BlackFideId "13403320"]
[WhiteElo "2462"]
[BlackElo "2622"]
[Result "0-1"]
[Round "07"]
[TimeControl "180+1"]
[Date "2022.02.23"]
[WhiteClock "0:00:07"]
[BlackClock "0:00:05"]

1. d4 {[%clk 0:02:59]}  Nf6 {[%clk 0:02:59]} 2. c4 {[%clk 0:03:00]}  e6 {[%clk 0:02:58]} 3. Nf3 {[%clk 0:03:00]}  d5 {[%clk 0:02:58]} 4. g3 {[%clk 0:03:00]}  Be7 {[%clk 0:02:58]} 5. Bg2 {[%clk 0:03:00]}  dxc4 {[%clk 0:02:58]} 6. O-O {[%clk 0:03:00]}  O-O {[%clk 0:02:58]} 7. Qc2 {[%clk 0:03:00]}  b5 {[%clk 0:02:58]} 8. a4 {[%clk 0:02:57]}  b4 {[%clk 0:02:58]} 9. Nfd2 {[%clk 0:02:50]}  c6 {[%clk 0:02:57]} 10. Nxc4 {[%clk 0:02:41]}  Qxd4 {[%clk 0:02:57]} 11. Be3 {[%clk 0:02:37]}  Qd8 {[%clk 0:02:55]} 12. Rd1 {[%clk 0:02:37]}  Nd5 {[%clk 0:02:56]} 13. Bf4 {[%clk 0:02:16]}  Nd7 {[%clk 0:02:49]} 14. Bd6 {[%clk 0:02:15]}  Ba6 {[%clk 0:02:38]} 15. Nbd2 {[%clk 0:02:12]}  Bxd6 {[%clk 0:02:21]} 16. Nxd6 {[%clk 0:02:13]}  Qe7 {[%clk 0:02:21]} 17. N2c4 {[%clk 0:02:09]}  N7b6 {[%clk 0:02:11]} 18. e4 {[%clk 0:01:58]}  Nxc4 {[%clk 0:01:59]} 19. Nxc4 {[%clk 0:01:58]}  Nf6 {[%clk 0:01:54]} 20. Ne5 {[%clk 0:01:52]}  Rac8 {[%clk 0:01:47]} 21. Nxc6 {[%clk 0:01:24]}  Qe8 {[%clk 0:01:23]} 22. Rd6 {[%clk 0:01:07]}  Bb7 {[%clk 0:01:08]} 23. Rc1 {[%clk 0:01:03]}  Nd7 {[%clk 0:00:53]} 24. Qd2 {[%clk 0:00:43]}  Nb6 {[%clk 0:00:51]} 25. Nxa7 {[%clk 0:00:40]}  Rxc1+ {[%clk 0:00:50]} 26. Qxc1 {[%clk 0:00:41]}  Qxa4 {[%clk 0:00:48]} 27. Rxb6 {[%clk 0:00:37]}  Qxa7 {[%clk 0:00:48]} 28. Rxb4 {[%clk 0:00:32]}  Rd8 {[%clk 0:00:49]} 29. h4 {[%clk 0:00:30]}  Ba8 {[%clk 0:00:40]} 30. Rc4 {[%clk 0:00:29]}  Qa6 {[%clk 0:00:34]} 31. Rc7 {[%clk 0:00:26]}  h5 {[%clk 0:00:27]} 32. Qf4 {[%clk 0:00:25]}  Rf8 {[%clk 0:00:20]} 33. Bh3 {[%clk 0:00:25]}  Qa1+ {[%clk 0:00:19]} 34. Kh2 {[%clk 0:00:24]}  Qxb2 {[%clk 0:00:17]} 35. Kg2 {[%clk 0:00:13]}  Qd4 {[%clk 0:00:15]} 36. Rd7 {[%clk 0:00:11]}  Bxe4+ {[%clk 0:00:14]} 37. f3 {[%clk 0:00:10]}  Qb2+ {[%clk 0:00:13]} 38. Kg1 {[%clk 0:00:10]}  Qb6+ {[%clk 0:00:12]} 39. Kh2 {[%clk 0:00:10]}  Qf2+ {[%clk 0:00:12]} 40. Bg2 {[%clk 0:00:08]}  Bd5 {[%clk 0:00:11]} 41. Rxd5 {[%clk 0:00:05]}  exd5 {[%clk 0:00:10]} 42. Qe5 {[%clk 0:00:06]}  d4 {[%clk 0:00:09]} 43. Qxh5 {[%clk 0:00:05]}  d3 {[%clk 0:00:09]} 44. Qd5 {[%clk 0:00:06]}  d2 {[%clk 0:00:08]} 45. h5 {[%clk 0:00:06]}  Qe2 {[%clk 0:00:06]} 46. f4 {[%clk 0:00:07]}  d1=Q {[%clk 0:00:05]} 0-1


[Site "https://www.chess.com"]

[Event "Titled Tuesday Blitz February 22 Late 2022"]
[White "Nasuta, Grzegorz"]
[Black "Karas, Marek"]
[WhiteFideId "1141686"]
[BlackFideId "14928558"]
[WhiteElo "2396"]
[BlackElo "2270"]
[Result "0-1"]
[Round "07"]
[TimeControl "180+1"]
[Date "2022.02.22"]
[WhiteClock "0:00:06"]
[BlackClock "0:01:16"]

1. e4 {[%clk 0:03:00]}  e6 {[%clk 0:02:59]} 2. d4 {[%clk 0:02:57]}  d5 {[%clk 0:02:59]} 3. Bd3 {[%clk 0:02:55]}  dxe4 {[%clk 0:02:59]} 4. Bxe4 {[%clk 0:02:56]}  Nf6 {[%clk 0:02:59]} 5. Bf3 {[%clk 0:02:56]}  c5 {[%clk 0:03:00]} 6. Ne2 {[%clk 0:02:56]}  Nc6 {[%clk 0:03:00]} 7. Be3 {[%clk 0:02:56]}  e5 {[%clk 0:03:00]} 8. Bxc6+ {[%clk 0:02:55]}  bxc6 {[%clk 0:03:01]} 9. dxe5 {[%clk 0:02:55]}  Qxd1+ {[%clk 0:03:02]} 10. Kxd1 {[%clk 0:02:55]}  Ng4 {[%clk 0:03:02]} 11. Nd2 {[%clk 0:02:55]}  Nxe5 {[%clk 0:02:59]} 12. f3 {[%clk 0:02:46]}  Be7 {[%clk 0:02:55]} 13. Ne4 {[%clk 0:02:43]}  Nc4 {[%clk 0:02:50]} 14. Bxc5 {[%clk 0:02:41]}  Nxb2+ {[%clk 0:02:50]} 15. Kd2 {[%clk 0:02:35]}  Nc4+ {[%clk 0:02:50]} 16. Kc3 {[%clk 0:02:35]}  Nb6 {[%clk 0:02:48]} 17. Bxe7 {[%clk 0:02:30]}  Kxe7 {[%clk 0:02:47]} 18. Nf4 {[%clk 0:02:30]}  Rd8 {[%clk 0:02:42]} 19. Rhe1 {[%clk 0:02:29]}  Kf8 {[%clk 0:02:42]} 20. Rad1 {[%clk 0:02:28]}  Nd5+ {[%clk 0:02:39]} 21. Nxd5 {[%clk 0:02:28]}  cxd5 {[%clk 0:02:40]} 22. Nc5 {[%clk 0:02:05]}  Bf5 {[%clk 0:02:40]} 23. Re5 {[%clk 0:02:04]}  Rac8 {[%clk 0:02:23]} 24. Kd4 {[%clk 0:01:15]}  Bxc2 {[%clk 0:02:20]} 25. Rc1 {[%clk 0:01:15]}  Bg6 {[%clk 0:02:17]} 26. Nd7+ {[%clk 0:00:45]}  Kg8 {[%clk 0:02:18]} 27. Rxc8 {[%clk 0:00:45]}  Rxc8 {[%clk 0:02:18]} 28. Rxd5 {[%clk 0:00:37]}  h6 {[%clk 0:02:15]} 29. Ra5 {[%clk 0:00:36]}  Rc2 {[%clk 0:02:09]} 30. Rxa7 {[%clk 0:00:33]}  Bf5 {[%clk 0:02:01]} 31. Ra8+ {[%clk 0:00:25]}  Kh7 {[%clk 0:02:01]} 32. Nf8+ {[%clk 0:00:25]}  Kg8 {[%clk 0:02:01]} 33. g4 {[%clk 0:00:25]}  Rc8 {[%clk 0:01:55]} 34. Ra5 {[%clk 0:00:02]}  Bc2 {[%clk 0:01:39]} 35. Nd7 {[%clk 0:00:01]}  Rd8 {[%clk 0:01:39]} 36. Ra7 {[%clk 0:00:01]}  Bd1 {[%clk 0:01:35]} 37. Ke3 {[%clk 0:00:02]}  Re8+ {[%clk 0:01:31]} 38. Kf2 {[%clk 0:00:01]}  Re2+ {[%clk 0:01:29]} 39. Kg3 {[%clk 0:00:02]}  Re3 {[%clk 0:01:26]} 40. Ra8+ {[%clk 0:00:02]}  Kh7 {[%clk 0:01:27]} 41. Nf8+ {[%clk 0:00:02]}  Kg8 {[%clk 0:01:27]} 42. Ne6+ {[%clk 0:00:03]}  Kh7 {[%clk 0:01:27]} 43. Nf8+ {[%clk 0:00:04]}  Kg8 {[%clk 0:01:27]} 44. Ng6+ {[%clk 0:00:04]}  Kh7 {[%clk 0:01:26]} 45. Nh4 {[%clk 0:00:04]}  g5 {[%clk 0:01:21]} 46. Nf5 {[%clk 0:00:05]}  Rxf3+ {[%clk 0:01:20]} 47. Kg2 {[%clk 0:00:05]}  Rf4 {[%clk 0:01:15]} 48. h3 {[%clk 0:00:06]}  Bf3+ {[%clk 0:01:15]} 49. Kg3 {[%clk 0:00:06]}  Bxa8 {[%clk 0:01:16]} 0-1


[Site "https://www.chess.com"]

[Event "Titled Tuesday Blitz February 22 Late 2022"]
[White "Nesterov, Arseniy"]
[Black "Sadhwani, Raunak"]
[WhiteFideId "24198455"]
[BlackFideId "35093487"]
[WhiteElo "2489"]
[BlackElo "2616"]
[Result "0-1"]
[Round "07"]
[TimeControl "180+1"]
[Date "2022.02.22"]
[WhiteClock "0:00:02"]
[BlackClock "0:00:13"]

1. d4 {[%clk 0:03:00]}  Nf6 {[%clk 0:03:00]} 2. c4 {[%clk 0:03:01]}  g6 {[%clk 0:02:57]} 3. Nc3 {[%clk 0:03:01]}  Bg7 {[%clk 0:02:57]} 4. e4 {[%clk 0:03:02]}  d6 {[%clk 0:02:57]} 5. Be2 {[%clk 0:03:02]}  O-O {[%clk 0:02:58]} 6. Be3 {[%clk 0:03:03]}  Nbd7 {[%clk 0:02:53]} 7. Nf3 {[%clk 0:03:02]}  e5 {[%clk 0:02:48]} 8. O-O {[%clk 0:03:01]}  Re8 {[%clk 0:02:32]} 9. dxe5 {[%clk 0:02:53]}  dxe5 {[%clk 0:02:31]} 10. h3 {[%clk 0:02:52]}  c6 {[%clk 0:02:30]} 11. c5 {[%clk 0:02:49]}  Nh5 {[%clk 0:02:26]} 12. Re1 {[%clk 0:02:28]}  Nf4 {[%clk 0:02:26]} 13. Bf1 {[%clk 0:02:28]}  Ne6 {[%clk 0:02:15]} 14. b4 {[%clk 0:02:23]}  Ndf8 {[%clk 0:02:15]} 15. Ne2 {[%clk 0:01:59]}  a5 {[%clk 0:02:12]} 16. a3 {[%clk 0:01:58]}  Qc7 {[%clk 0:01:38]} 17. Qc2 {[%clk 0:01:51]}  Nf4 {[%clk 0:01:19]} 18. Nxf4 {[%clk 0:01:43]}  exf4 {[%clk 0:01:20]} 19. Bd4 {[%clk 0:01:43]}  Bxd4 {[%clk 0:01:17]} 20. Nxd4 {[%clk 0:01:44]}  Be6 {[%clk 0:01:06]} 21. Nf3 {[%clk 0:01:26]}  Nd7 {[%clk 0:01:03]} 22. Qc3 {[%clk 0:01:24]}  axb4 {[%clk 0:01:01]} 23. axb4 {[%clk 0:01:25]}  Rad8 {[%clk 0:00:52]} 24. Rad1 {[%clk 0:01:12]}  Nf8 {[%clk 0:00:46]} 25. Qf6 {[%clk 0:01:09]}  Rxd1 {[%clk 0:00:41]} 26. Rxd1 {[%clk 0:01:10]}  Bb3 {[%clk 0:00:41]} 27. Re1 {[%clk 0:00:53]}  Ne6 {[%clk 0:00:41]} 28. Qc3 {[%clk 0:00:50]}  Ba4 {[%clk 0:00:41]} 29. Ne5 {[%clk 0:00:30]}  h5 {[%clk 0:00:28]} 30. Nc4 {[%clk 0:00:29]}  Rd8 {[%clk 0:00:21]} 31. Nd6 {[%clk 0:00:29]}  b5 {[%clk 0:00:21]} 32. Qf6 {[%clk 0:00:25]}  Rd7 {[%clk 0:00:20]} 33. e5 {[%clk 0:00:25]}  Qd8 {[%clk 0:00:21]} 34. Bd3 {[%clk 0:00:22]}  Nd4 {[%clk 0:00:08]} 35. Qxf4 {[%clk 0:00:20]}  Ne6 {[%clk 0:00:07]} 36. Qf6 {[%clk 0:00:20]}  Nd4 {[%clk 0:00:07]} 37. Be4 {[%clk 0:00:15]}  Bc2 {[%clk 0:00:08]} 38. Bxc2 {[%clk 0:00:10]}  Nxc2 {[%clk 0:00:08]} 39. Rb1 {[%clk 0:00:09]}  Nd4 {[%clk 0:00:08]} 40. Ra1 {[%clk 0:00:08]}  Nc2 {[%clk 0:00:07]} 41. Rb1 {[%clk 0:00:06]}  Nd4 {[%clk 0:00:07]} 42. Kh1 {[%clk 0:00:03]}  Qxf6 {[%clk 0:00:07]} 43. exf6 {[%clk 0:00:04]}  Ra7 {[%clk 0:00:08]} 44. Re1 {[%clk 0:00:04]}  Ne6 {[%clk 0:00:08]} 45. g3 {[%clk 0:00:04]}  Ra4 {[%clk 0:00:08]} 46. Re4 {[%clk 0:00:03]}  g5 {[%clk 0:00:07]} 47. Nc8 {[%clk 0:00:03]}  Kh7 {[%clk 0:00:07]} 48. Ne7 {[%clk 0:00:04]}  Ra6 {[%clk 0:00:07]} 49. Kg2 {[%clk 0:00:03]}  Kh6 {[%clk 0:00:07]} 50. Re5 {[%clk 0:00:03]}  Nd4 {[%clk 0:00:04]} 51. Re4 {[%clk 0:00:03]}  Ne6 {[%clk 0:00:05]} 52. Re3 {[%clk 0:00:03]}  Kh7 {[%clk 0:00:05]} 53. Rd3 {[%clk 0:00:03]}  Ra4 {[%clk 0:00:03]} 54. Nxc6 {[%clk 0:00:03]}  g4 {[%clk 0:00:04]} 55. h4 {[%clk 0:00:03]}  Kg6 {[%clk 0:00:04]} 56. Rd5 {[%clk 0:00:03]}  Kxf6 {[%clk 0:00:04]} 57. Rxh5 {[%clk 0:00:04]}  Ra2 {[%clk 0:00:05]} 58. Rd5 {[%clk 0:00:03]}  Rb2 {[%clk 0:00:05]} 59. Rd6 {[%clk 0:00:03]}  Rc2 {[%clk 0:00:06]} 60. Nd4 {[%clk 0:00:03]}  Rc4 {[%clk 0:00:06]} 61. Nxe6 {[%clk 0:00:03]}  fxe6 {[%clk 0:00:07]} 62. Rb6 {[%clk 0:00:03]}  Rxb4 {[%clk 0:00:08]} 63. c6 {[%clk 0:00:03]}  Rb2 {[%clk 0:00:08]} 64. c7 {[%clk 0:00:04]}  Rc2 {[%clk 0:00:08]} 65. Rxb5 {[%clk 0:00:04]}  Rxc7 {[%clk 0:00:09]} 66. Rb4 {[%clk 0:00:05]}  Rg7 {[%clk 0:00:10]} 67. Kf1 {[%clk 0:00:05]}  e5 {[%clk 0:00:10]} 68. Ke2 {[%clk 0:00:05]}  Kf5 {[%clk 0:00:11]} 69. Rb8 {[%clk 0:00:05]}  Ra7 {[%clk 0:00:10]} 70. Rg8 {[%clk 0:00:06]}  Ra2+ {[%clk 0:00:10]} 71. Kf1 {[%clk 0:00:06]}  Ra1+ {[%clk 0:00:11]} 72. Kg2 {[%clk 0:00:06]}  Ra4 {[%clk 0:00:11]} 73. h5 {[%clk 0:00:06]}  Ra7 {[%clk 0:00:12]} 74. f3 {[%clk 0:00:05]}  Ra2+ {[%clk 0:00:12]} 75. Kf1 {[%clk 0:00:05]}  gxf3 {[%clk 0:00:12]} 76. h6 {[%clk 0:00:05]}  Rh2 {[%clk 0:00:12]} 77. Rf8+ {[%clk 0:00:03]}  Ke4 {[%clk 0:00:12]} 78. Rf6 {[%clk 0:00:01]}  Ke3 {[%clk 0:00:13]} 79. Kg1 {[%clk 0:00:02]}  Rh3 {[%clk 0:00:13]} 80. g4 {[%clk 0:00:02]}  Ke2 {[%clk 0:00:14]} 81. g5 {[%clk 0:00:02]}  e4 {[%clk 0:00:14]} 82. Rf5 {[%clk 0:00:02]}  e3 {[%clk 0:00:14]} 83. g6 {[%clk 0:00:02]}  Rxh6 {[%clk 0:00:13]} 0-1


[Site "https://www.chess.com"]